bitfinex-derivatives/quotes_ETHF0:USTF0_20250210
["timestamp","ask_amount","ask_price","bid_price","bid_amount"]
[1739202595555,1.1487,2653.5,2652.9,3.7883]
[1739202595863,5.72261279,2653.5,2652.9,3.7883]
[1739202596561,1.7221,2653.5,2652.9,3.7883]
[1739202598359,4.9299,2653.5,2652.9,0.5805]
[1739202598562,4.9299,2653.5,2652.9,1.814]
[1739202598863,4.9299,2653.5,2652.7,0.5844]
[1739202598864,4.18273011,2653.4,2652.7,2.3984]
[1739202599454,4.9299,2653.5,2652.7,2.3984]
[1739202600672,3.2078,2653.2,2652.6,3.21345686]
[1739202601071,4.26914966,2653.1,2652.6,3.21345686]
[1739202601263,4.9299,2653.5,2652.6,2.46046384]
[1739202601467,4.9299,2653.5,2652.7,4.3142]
[1739202601968,4.36567024,2653.4,2652.7,3.2078]
[1739202602177,3.2078,2653.2,2652.7,3.2078]
[1739202603263,3.2078,2653.2,2652.6,0.00565686]
[1739202603668,4.22224057,2653.1,2652.6,0.00565686]
[1739202604168,3.2078,2652.9,2652.6,0.00565686]
[1739202604467,1.13,2652.8,2652.6,0.00565686]
[1739202606175,4.01707919,2652.7,2652.6,0.00565686]
[1739202607567,1.13,2652.8,2652.6,0.00565686]
[1739202608587,1.13,2652.8,2652.7,0.04014656]
[1739202609086,2.914,2653.0,2652.7,0.04014656]
[1739202609289,4.885,2653.4,2652.8,1.99530617]
[1739202609488,1.6772,2653.4,2653.0,3.2078]
[1739202609690,1.6772,2653.4,2653.2,1.99530617]
[1739202609885,1.6772,2653.4,2653.1,0.04014656]
[1739202610193,4.885,2653.4,2653.1,0.04014656]
[1739202610392,4.885,2653.4,2653.2,0.05151102]
[1739202611385,4.885,2653.4,2653.3,0.05151102]
[1739202613290,4.885,2653.4,2653.3,0.01372076]
[1739202614283,9.6510346,2653.4,2652.6,4.39096303]
[1739202614486,9.6510346,2653.4,2652.6,2.39565686]
[1739202614691,9.6510246,2653.4,2652.6,2.39565686]
[1739202614892,3.2078,2653.1,2652.6,2.39565686]
[1739202615489,3.2078,2652.8,2652.6,0.00565686]
[1739202615796,1.1174,2652.7,2652.6,0.00565686]
[1739202616101,5.06839898,2652.7,2652.6,0.00565686]
[1739202616696,5.06839898,2652.7,2652.6,0.04566567]
[1739202617600,5.65579898,2652.7,2652.6,0.04566567]
[1739202618095,1.7048,2652.7,2652.6,0.04566567]
[1739202618293,1.1436,2652.7,2652.6,0.04566567]
[1739202618800,1.7166,2652.7,2652.6,0.04566567]
[1739202622508,3.2078,2652.9,2652.6,0.04566567]
[1739202622708,3.2078,2652.9,2652.7,0.04000881]
[1739202623306,1.7846,2653.2,2652.7,0.04000881]
[1739202623500,1.7846,2653.2,2652.7,0.61520881]
[1739202623699,4.0386088,2653.1,2652.9,0.04000881]
[1739202624406,3.2078,2653.0,2652.6,0.00565686]
[1739202624615,3.2078,2652.7,2651.9,3.2078]
[1739202624908,3.2078,2652.4,2651.9,3.2078]
[1739202625298,0.66899725,2652.3,2651.9,3.2078]
[1739202627404,1.1714,2652.6,2651.9,5.66382086]
[1739202627603,4.3792,2652.6,2652.0,0.5654]
[1739202629306,3.2078,2652.6,2652.0,0.5654]
[1739202630007,3.2078,2652.6,2651.9,3.2078]
[1739202630008,4.7497341,2652.5,2651.9,3.2078]
[1739202630207,0.5917,2652.4,2651.9,3.2078]
[1739202630512,4.7656341,2652.3,2651.9,3.2078]
[1739202631415,4.7656341,2652.3,2651.8,1.81865686]
[1739202631416,3.2078,2652.0,2651.8,0.00565686]
[1739202631605,0.5817,2651.9,2651.8,0.00565686]
[1739202631809,4.88626265,2651.9,2651.8,0.00565686]
[1739202632614,4.88626265,2651.9,2651.0,2.45602086]
[1739202632615,13.71938351,2651.9,2650.6,6.1678]
[1739202632809,3.2078,2651.5,2650.8,1.812]
[1739202633111,0.5944,2651.4,2650.8,1.812]
[1739202635809,0.5944,2651.4,2651.0,2.45602086]
[1739202636006,6.1218,2651.7,2651.0,2.45602086]
[1739202636208,0.5489,2651.6,2651.0,2.45602086]
[1739202636407,0.5746,2651.5,2651.0,2.45602086]
[1739202636911,3.2078,2651.1,2650.7,0.564]
[1739202637105,0.5489,2651.0,2650.7,0.564]
[1739202637314,0.5746,2650.9,2650.7,0.564]
[1739202637612,0.5746,2650.9,2650.6,3.2078]
[1739202640112,0.5746,2650.9,2650.5,2.6694801]
[1739202641316,0.5746,2650.9,2650.6,3.2078]
[1739202641511,0.5489,2651.0,2650.6,3.2078]
[1739202641719,1.1844,2651.3,2650.6,3.2078]
[1739202641914,1.7732,2651.3,2650.6,3.2078]
[1739202642714,1.1858,2651.3,2651.0,3.2078]
[1739202642913,2.914,2651.4,2651.2,3.2078]
[1739202643114,2.914,2651.4,2651.2,1.812]
[1739202643314,2.914,2651.4,2651.3,4.369]
[1739202643513,4.1169,2652.1,2651.3,6.82502086]
[1739202643720,1.2029,2652.1,2651.6,3.2078]
[1739202644015,1.2029,2652.1,2651.3,3.61722086]
[1739202644016,4.37895304,2652.0,2651.3,1.1612]
[1739202644221,4.37895304,2652.0,2651.3,0.5608]
[1739202644522,4.37895304,2652.0,2651.2,1.812]
[1739202644523,3.2078,2651.8,2651.2,1.812]
[1739202645223,4.2118387,2651.7,2651.2,1.812]
[1739202645422,0.5552,2651.6,2651.2,1.812]
[1739202645624,1.1309,2651.6,2651.2,1.812]
[1739202645925,1.1309,2651.6,2650.9,0.5608]
[1739202646119,0.5831,2651.5,2651.0,1.812]
[1739202647326,0.5831,2651.5,2651.0,5.0198]
[1739202647620,0.5831,2651.5,2651.0,7.01693017]
[1739202648025,1.1309,2651.6,2651.0,7.01693017]
[1739202648229,1.7157,2651.6,2651.0,7.01693017]
[1739202648631,1.7157,2651.6,2651.0,3.80913017]
[1739202649422,1.7157,2651.6,2651.0,7.01693017]
[1739202649624,1.7157,2651.6,2651.0,3.80913017]
[1739202650131,2.914,2651.7,2651.5,3.2078]
[1739202650926,2.914,2651.7,2651.6,0.5638]
[1739202651132,4.9332,2652.1,2651.6,0.5638]
[1739202651829,1.99713017,2651.7,2650.9,3.2078]
[1739202652019,3.2078,2651.5,2650.9,4.3222]
[1739202652228,1.1404,2651.4,2650.9,4.3222]
[1739202654330,0.6063,2651.8,2651.3,3.2078]
[1739202654526,1.1705,2651.8,2651.3,3.2078]
[1739202655634,1.1705,2651.8,2651.1,2.75134017]
[1739202655635,1.1705,2651.8,2651.1,5.20493017]
[1739202655828,3.21345686,2652.2,2651.7,5.20493017]
[1739202656023,3.21345686,2652.2,2651.8,2.9464]
[1739202656436,0.00565686,2652.2,2651.8,2.9464]
[1739202657634,0.00565686,2652.2,2651.8,6.1542]
[1739202657839,0.00565686,2652.2,2651.8,2.9464]
[1739202658029,0.00565686,2652.2,2651.8,6.1542]
[1739202658336,0.00565686,2652.2,2651.9,2.45672633]
[1739202658724,0.00565686,2652.2,2651.8,2.9464]
[1739202659125,0.00565686,2652.2,2652.0,3.2078]
[1739202659331,0.00565686,2652.2,2651.8,2.9464]
[1739202659635,0.00565686,2652.2,2652.1,3.2078]
[1739202660527,0.00565686,2652.2,2651.8,1.1344]
[1739202660732,0.00565686,2652.2,2651.6,1.811]
[1739202660930,1.73045686,2652.2,2651.6,1.811]
[1739202661731,1.73045686,2652.2,2651.8,3.2078]
[1739202662136,1.17675686,2652.2,2651.9,0.6077]
[1739202663136,0.5537,2652.1,2651.9,0.6077]
[1739202663439,1.17675686,2652.2,2651.9,0.6077]
[1739202665534,0.00565686,2652.2,2651.9,0.6077]
[1739202665934,0.00565686,2652.2,2652.1,3.2078]
[1739202667028,0.00565686,2652.2,2652.0,0.5915]
[1739202667233,0.00565686,2652.2,2652.1,3.2078]
[1739202667434,20.24375541,2653.5,2652.1,3.96173]
[1739202667636,1.7175,2653.3,2652.4,5.66452633]
[1739202667939,1.7175,2653.3,2652.8,3.2078]
[1739202668740,1.72315686,2653.3,2652.8,3.21345686]
[1739202668943,1.72315686,2653.3,2652.8,0.00565686]
[1739202671137,3.2078,2653.2,2652.8,0.00565686]
[1739202672133,3.96833453,2653.1,2652.8,0.00565686]
[1739202674049,3.2078,2653.2,2652.8,3.21345686]
[1739202674241,1.72315686,2653.3,2652.8,3.21345686]
[1739202674548,0.00565686,2653.3,2653.1,3.2078]
[1739202674846,0.00565686,2653.3,2653.2,1.81]
[1739202677943,0.00565686,2653.3,2653.2,3.80429359]
[1739202679247,0.00565686,2653.3,2653.2,9.80429359]
[1739202679449,1.1413,2653.8,2653.2,9.80429359]
[1739202679649,1.1413,2653.8,2653.6,3.2078]
[1739202680251,1.1413,2653.8,2653.3,3.2078]
[1739202680438,1.1413,2653.8,2653.4,0.5869]
[1739202680645,1.14695686,2653.8,2653.4,1.19]
[1739202681248,0.00565686,2653.8,2653.6,3.2078]
[1739202683051,0.00565686,2653.8,2653.4,1.19]
[1739202683646,0.00565686,2653.8,2653.4,0.5869]
[1739202683842,0.00565686,2653.8,2653.2,5.20209359]
[1739202684046,3.21345686,2653.8,2653.4,1.809]
[1739202684354,0.00565686,2653.8,2653.4,1.809]
[1739202685257,0.00565686,2653.8,2653.5,3.2078]
[1739202685449,0.00565686,2653.8,2653.5,5.20209359]
[1739202686651,0.00565686,2653.8,2653.5,5.77489359]
[1739202686853,0.00565686,2653.8,2653.6,0.596]
[1739202687659,0.00565686,2653.8,2653.5,5.77489359]
[1739202690954,0.00565686,2653.8,2653.5,3.2078]
[1739202692657,0.00565686,2653.8,2653.4,1.809]
[1739202694952,0.00565686,2653.8,2653.4,5.0168]
[1739202695154,0.00565686,2653.8,2653.7,3.2078]
[1739202695664,0.00565686,2653.8,2653.7,44.0078]
[1739202696662,0.00565686,2653.8,2653.7,40.8]
[1739202696856,0.00565686,2653.8,2653.5,2.56309359]
[1739202697263,0.00565686,2653.8,2653.5,1.99429359]
[1739202697464,0.00565686,2653.8,2653.6,1.808]
[1739202704373,3.21345686,2653.8,2653.4,1.807]
[1739202704672,5.7969672,2653.7,2653.4,1.807]
[1739202704869,1.6943,2653.7,2653.4,1.807]
[1739202705877,0.00565686,2653.8,2653.5,5.20209359]
[1739202706076,0.00565686,2653.8,2653.5,6.31809359]
[1739202706277,0.00565686,2653.8,2653.5,11.11530517]
[1739202707465,0.00565686,2653.8,2653.5,3.11029359]
[1739202707979,0.00565686,2653.8,2653.6,1.807]
[1739202708975,18.91863541,2655.2,2653.9,0.7534]
[1739202708976,3.2078,2654.7,2653.9,0.7534]
[1739202709178,3.2078,2655.0,2654.4,1.99429359]
[1739202709480,3.2078,2655.0,2654.5,2.4097]
[1739202710181,3.21345686,2655.0,2654.5,2.41535686]
[1739202711779,3.21345686,2655.0,2654.5,1.81265686]
[1739202713179,3.21345686,2655.0,2654.5,0.00565686]
[1739202713373,3.2078,2654.7,2654.5,0.00565686]
[1739202713579,1.6834,2654.6,2654.5,0.00565686]
[1739202713778,5.9721955,2654.6,2654.5,0.00565686]
[1739202714278,1.6834,2654.6,2654.5,0.00565686]
[1739202714877,1.6834,2654.6,2654.5,0.00150839]
[1739202715975,5.74082438,2654.6,2654.5,0.00150839]
[1739202719588,1.6834,2654.6,2654.5,0.00150839]
[1739202720686,1.1156,2654.6,2654.5,0.00150839]
[1739202720883,0.6006,2654.9,2654.5,0.00150839]
[1739202721083,1.1814,2654.9,2654.5,0.00150839]
[1739202721284,1.1814,2654.9,2654.5,40.80150839]
[1739202721486,1.1814,2654.9,2654.5,3.20930839]
[1739202721787,1.1814,2654.9,2654.5,0.00150839]
[1739202721985,1.1814,2654.9,2654.6,1.806]
[1739202722688,0.00565686,2655.0,2654.6,1.806]
[1739202722891,0.00565686,2655.0,2654.6,5.0138]
[1739202723083,0.00565686,2655.0,2654.7,0.595]
[1739202723282,4.06535631,2654.9,2654.6,5.0138]
[1739202723488,0.5776,2654.8,2654.6,1.806]
[1739202723787,1.1864,2654.8,2654.6,1.806]
[1739202724591,0.00565686,2655.0,2654.7,1.99429359]
[1739202724796,0.00565686,2655.0,2654.9,3.2078]
[1739202724986,0.00565686,2655.0,2654.8,0.5637]
[1739202725181,0.00565686,2655.0,2654.9,0.5563]
[1739202727780,0.00565686,2655.0,2654.9,2.3613]
[1739202730087,0.00565686,2655.0,2654.9,5.5691]
[1739202733199,1.7614,2655.7,2654.9,10.44179549]
[1739202733400,1.7614,2655.7,2655.3,1.99429359]
[1739202733702,3.2078,2656.3,2655.6,1.99429359]
[1739202733897,1.1601,2656.2,2655.7,1.805]
[1739202734397,1.16575686,2656.2,2655.8,3.2078]
[1739202734598,1.16575686,2656.2,2655.7,1.81065686]
[1739202736798,1.16575686,2656.2,2655.8,3.2078]
[1739202737291,1.16575686,2656.2,2655.7,1.81065686]
[1739202737292,1.16575686,2656.2,2655.9,5.79959359]
[1739202737694,0.00565686,2656.2,2655.9,5.79959359]
[1739202737997,0.00565686,2656.2,2655.9,2.59179359]
[1739202738301,0.00565686,2656.2,2655.9,5.79959359]
[1739202738500,0.00565686,2656.2,2656.0,0.588]
[1739202739594,0.00565686,2656.2,2656.0,1.34081]
[1739202739797,0.00565686,2656.2,2656.0,0.588]
[1739202739997,0.00565686,2656.2,2656.0,0.7248]
[1739202740302,0.00565686,2656.2,2656.0,0.588]
[1739202741799,0.00565686,2656.2,2655.9,2.59179359]
[1739202742902,0.00565686,2656.2,2655.9,1.99429359]
[1739202746707,3.21345686,2656.2,2655.7,0.00565686]
[1739202747004,5.74248025,2656.1,2655.7,0.00565686]
[1739202750504,3.2078,2655.9,2655.7,0.00565686]
[1739202754326,3.2078,2655.9,2655.7,0.00150914]
[1739202754628,3.96066,2655.9,2655.7,0.00150914]
[1739202755439,6.1218,2655.9,2655.0,1.99429359]
[1739202755637,3.2078,2655.6,2654.7,2.57739359]
[1739202755927,3.96086,2655.2,2654.6,1.803]
[1739202756232,3.2078,2654.9,2654.4,1.99429359]
[1739202756439,1.1343,2654.8,2654.3,1.803]
[1739202756729,5.43504483,2654.8,2654.3,1.803]
[1739202757040,5.44070169,2654.8,2654.3,1.803]
[1739202757540,1.13995686,2654.8,2654.4,1.99429359]
[1739202758523,1.13995686,2654.8,2654.5,3.2078]
[1739202758724,1.13995686,2654.8,2654.5,1.1953]
[1739202759923,1.13995686,2654.8,2654.4,1.99429359]
[1739202760323,0.00565686,2654.8,2654.4,1.99429359]
[1739202760526,0.00565686,2654.8,2654.7,1.99429359]
[1739202760930,3.2078,2655.6,2654.7,7.99429359]
[1739202761136,0.5551,2655.5,2655.2,1.99429359]
[1739202761436,0.5551,2655.5,2655.3,40.8]
[1739202762428,0.5551,2655.5,2655.3,41.4058]
[1739202762735,0.5551,2655.5,2655.3,40.8]
[1739202762925,0.5551,2655.5,2655.2,4.36799359]
[1739202763732,0.5551,2655.5,2655.2,1.803]
[1739202763929,0.5526,2655.4,2655.2,1.803]
[1739202765033,0.5526,2655.4,2655.1,0.00565686]
[1739202765034,3.2078,2655.3,2655.1,0.00565686]
[1739202765925,3.2078,2655.3,2655.0,1.803]
[1739202766832,6.1218,2655.3,2654.7,3.2078]
[1739202767027,6.1218,2655.3,2654.9,0.00565686]
[1739202770434,6.87482,2655.3,2654.9,0.00565686]
[1739202770635,6.1218,2655.3,2654.9,0.00565686]
[1739202770940,3.2078,2655.3,2654.9,0.00565686]
[1739202771238,3.96083,2655.3,2654.9,0.00565686]
[1739202771433,3.9609,2655.0,2654.9,0.00565686]
[1739202771935,14.25499385,2655.0,2654.9,0.00565686]
[1739202772337,0.75315,2654.9,2654.2,0.5567]
[1739202772539,3.2078,2654.7,2654.2,0.5567]
[1739202772935,0.5877,2654.6,2654.2,0.5567]
[1739202773436,3.5017,2654.6,2654.1,0.60955686]
[1739202773639,3.5017,2654.6,2654.1,2.41155686]
[1739202773940,0.5782,2654.5,2654.1,2.41155686]
[1739202774330,0.5782,2654.5,2654.1,1.80765686]
[1739202784444,3.2078,2655.3,2654.3,1.99429359]
[1739202784743,0.5598,2655.1,2654.4,1.2013]
[1739202785344,0.5598,2655.1,2654.4,42.0013]
[1739202785742,1.1191,2655.2,2654.6,3.2078]
[1739202785949,3.2078,2655.3,2654.9,5.20209359]
[1739202786253,3.2078,2655.3,2655.0,1.2035]
[1739202787850,3.2078,2655.3,2654.9,1.802]
[1739202788048,0.5833,2655.2,2654.9,1.802]
[1739202788249,3.2078,2655.0,2654.9,1.802]
[1739202789646,3.2078,2655.0,2654.4,0.577]
[1739202789852,1.1853,2654.9,2654.4,0.577]
[1739202791149,0.5617,2654.8,2654.4,0.577]
[1739202791451,0.6037,2654.9,2654.4,0.577]
[1739202792654,3.2078,2655.0,2654.4,0.577]
[1739202792850,3.2078,2655.0,2654.6,1.99429359]
[1739202793251,3.2078,2655.0,2654.7,0.5845]
[1739202793449,3.7894,2655.5,2654.9,1.99429359]
[1739202793649,0.5617,2655.6,2655.2,1.99429359]
[1739202793953,3.2078,2655.8,2655.3,0.603]
[1739202794159,3.2078,2655.8,2655.3,41.403]
[1739202796455,0.6085,2656.1,2655.5,1.99429359]
[1739202799658,0.6085,2656.1,2655.6,40.8]
[1739202800354,3.2078,2656.4,2655.5,1.99429359]
[1739202800559,6.691,2656.4,2655.5,2.74723359]
[1739202800761,6.691,2656.4,2655.6,40.8]
[1739202801364,6.691,2656.4,2655.5,1.99429359]
[1739202802163,6.691,2656.4,2655.6,0.6057]
[1739202803863,3.777,2656.4,2655.6,6.6057]
[1739202804059,3.2078,2656.8,2656.2,1.99429359]
[1739202804361,0.5588,2656.7,2656.5,3.2078]
[1739202804567,0.5588,2656.7,2656.3,0.6006]
[1739202804759,0.5588,2656.7,2656.3,1.1578]
[1739202805863,0.00564568,2656.8,2656.3,1.1578]
[1739202806165,0.00564568,2656.8,2656.5,5.20209359]
[1739202810059,0.00564568,2656.8,2656.6,40.8]
[1739202811059,0.00564568,2656.8,2656.7,0.5821]
[1739202812068,2.914,2657.7,2657.0,0.75253]
[1739202812363,3.2078,2657.8,2657.4,1.99429359]
[1739202812364,0.5956,2657.6,2657.4,1.99429359]
[1739202812562,0.5956,2657.6,2657.4,40.8]
[1739202813061,0.5956,2657.6,2657.2,0.5931]
[1739202813062,3.2078,2657.5,2657.1,1.799]
[1739202813258,1.1204,2657.4,2657.1,1.799]
[1739202813459,3.2078,2657.2,2657.1,1.799]
[1739202813864,1.1204,2657.4,2657.1,1.799]
[1739202815372,4.0344,2657.4,2656.7,1.799]
[1739202815872,4.0344,2657.4,2656.8,1.99429359]
[1739202818462,1.1204,2657.4,2656.8,1.99429359]
[1739202818666,3.2078,2657.2,2656.7,1.799]
[1739202819162,0.558,2657.1,2656.7,1.799]
[1739202820269,0.558,2657.1,2656.8,1.99429359]
[1739202821772,0.558,2657.1,2656.9,40.8]
[1739202822277,0.558,2657.1,2656.8,1.99429359]
[1739202822870,0.558,2657.1,2656.7,1.798]
[1739202823070,0.558,2657.1,2656.8,1.99429359]
[1739202823468,0.558,2657.1,2656.9,0.5784]
[1739202823870,0.558,2657.1,2656.8,2.57529359]
[1739202824273,3.7658,2657.1,2656.6,0.5784]
[1739202824475,0.558,2657.1,2656.7,1.798]
[1739202825372,3.7658,2657.1,2656.7,1.798]
[1739202825571,0.558,2657.1,2656.7,1.798]
[1739202825772,0.558,2657.1,2656.8,1.99429359]
[1739202826169,0.558,2657.1,2656.7,1.798]
[1739202828170,3.7658,2657.1,2656.7,1.798]
[1739202828374,3.7658,2657.1,2656.6,1.797]
[1739202829679,3.2078,2656.8,2656.6,1.797]
[1739202829875,1.7786,2656.7,2656.6,1.797]
[1739202830173,1.7786,2656.7,2656.2,1.99993927]
[1739202830478,1.7786,2656.7,2656.2,44.59693927]
[1739202830681,1.7786,2656.7,2656.2,42.79993927]
[1739202830971,1.7786,2656.7,2656.2,0.00564568]
[1739202831172,3.2078,2656.5,2656.2,0.00564568]
[1739202832180,0.75272,2656.4,2656.2,0.00564568]
[1739202832478,3.95477486,2656.4,2655.6,1.99429359]
[1739202832680,3.2078,2656.1,2655.6,1.99429359]
[1739202832881,1.1735,2656.0,2655.6,42.79429359]
[1739202833074,1.1735,2656.0,2655.6,1.99429359]
[1739202834271,0.00564568,2656.1,2655.9,1.99429359]
[1739202834475,2.914,2656.5,2656.0,1.1517]
[1739202834679,2.914,2656.5,2656.3,1.99429359]
[1739202834879,3.2078,2657.1,2656.3,3.79129359]
[1739202835082,1.1476,2657.2,2656.6,5.20209359]
[1739202835276,1.1476,2657.2,2656.7,0.5734]
[1739202835579,1.15324568,2657.2,2656.7,0.5734]
[1739202836876,0.00564568,2657.2,2656.9,1.99429359]
[1739202840079,0.00564568,2657.2,2657.0,0.5771]
[1739202840286,0.00564568,2657.2,2657.0,3.7849]
[1739202840485,0.00564568,2657.2,2657.0,5.5819]
[1739202840784,3.2078,2658.0,2657.2,0.75247]
[1739202840980,3.2078,2658.0,2657.3,2.59849359]
[1739202841780,1.68414568,2657.9,2657.3,2.59849359]
[1739202842185,1.68414568,2657.9,2657.5,3.2078]
[1739202842589,1.68414568,2657.9,2657.6,2.54349359]
[1739202842785,0.00564568,2657.9,2657.6,2.54349359]
[1739202842990,0.00564568,2657.9,2657.7,1.796]
[1739202846491,0.00564568,2657.9,2657.6,2.54349359]
[1739202846689,0.00564568,2657.9,2657.5,3.2078]
[1739202846885,0.00564568,2657.9,2657.5,5.0038]
[1739202848697,3.21344568,2657.9,2657.5,5.0038]
[1739202848891,1.744,2657.8,2657.3,0.6042]
[1739202849092,3.2078,2657.6,2657.2,1.796]
[1739202849895,3.2078,2657.3,2657.2,1.796]
[1739202850293,3.2078,2657.6,2657.2,1.796]
[1739202851488,3.2078,2657.6,2656.9,0.5863]
[1739202851693,3.2078,2657.6,2657.0,1.99429359]
[1739202852098,3.95071454,2657.5,2657.0,1.99429359]
[1739202852303,3.2078,2657.3,2656.9,1.796]
[1739202852600,1.148,2657.2,2656.9,1.796]
[1739202853400,0.5805,2657.8,2657.1,3.2078]
[1739202853599,1.7402,2657.8,2657.3,1.99429359]
[1739202854102,1.7402,2657.8,2657.3,3.79029359]
[1739202856103,3.21344568,2657.9,2657.3,3.79029359]
[1739202862203,0.00564568,2657.9,2657.4,3.2078]
[1739202863005,0.00564568,2657.9,2657.3,3.79029359]
[1739202863704,3.21344568,2657.9,2657.3,3.79029359]
[1739202864305,3.21344568,2657.9,2657.3,1.796]
[1739202864503,0.00371276,2657.6,2657.3,1.796]
[1739202865107,0.00371276,2657.6,2657.3,3.79029359]
[1739202865708,0.00371276,2657.6,2657.3,3.78929359]
[1739202866704,0.00371276,2657.6,2657.5,0.75239]
[1739202867305,0.00564568,2657.9,2657.7,1.99429359]
[1739202867503,0.00564568,2657.9,2657.8,0.5875]
[1739202869113,1.7221,2658.5,2657.8,0.5875]
[1739202869304,3.2078,2658.9,2658.1,0.75221]
[1739202869506,1.1588,2658.8,2658.2,1.794]
[1739202870006,1.1588,2658.8,2658.3,0.5849]
[1739202870210,1.16444568,2658.8,2658.3,0.5849]
[1739202870408,1.16444568,2658.8,2658.4,0.5633]
[1739202871109,1.16444568,2658.8,2658.2,1.79964568]
[1739202872914,1.16444568,2658.8,2658.3,5.20209359]
[1739202873211,0.00564568,2658.8,2658.7,3.2078]
[1739202873411,0.00564568,2658.8,2658.6,1.99429359]
[1739202874310,0.00564568,2658.8,2658.5,1.1118]
[1739202875304,0.00564568,2658.8,2658.6,1.99429359]
[1739202875908,0.00564568,2658.8,2658.7,0.75205]
[1739202876108,1.7123,2659.4,2659.1,0.75192]
[1739202876307,1.7123,2659.4,2659.1,1.99429359]
[1739202876513,1.7123,2659.4,2659.0,1.794]
[1739202877916,3.2078,2659.2,2659.0,1.794]
[1739202878712,1.7123,2659.4,2659.0,1.794]
[1739202879510,4.9201,2659.4,2659.0,1.794]
[1739202880013,3.98498881,2659.3,2659.0,1.794]
[1739202880213,3.2078,2659.1,2658.5,3.10609359]
[1739202880415,3.2078,2658.8,2658.3,1.793]
[1739202880614,1.749,2658.7,2658.3,1.793]
[1739202885417,3.2078,2659.3,2658.3,5.0008]
[1739202885617,4.9486,2659.3,2658.5,1.99429359]
[1739202885917,9.29169597,2659.3,2658.5,1.99429359]
[1739202886419,4.9486,2659.3,2658.6,40.8]
[1739202886620,4.9486,2659.3,2658.6,0.5492]
[1739202886821,4.9486,2659.3,2658.7,0.5618]
[1739202887219,4.9486,2659.3,2658.8,40.8]
[1739202889021,4.9486,2659.3,2658.5,1.99429359]
[1739202889530,4.9486,2659.3,2658.6,40.8]
[1739202890224,4.9486,2659.3,2658.6,44.0078]
[1739202890428,4.9486,2659.3,2658.6,40.8]
[1739202891316,1.7408,2659.3,2658.6,44.0078]
[1739202891524,1.7408,2659.3,2659.0,1.99429359]
[1739202891823,1.7408,2659.3,2659.0,3.78629359]
[1739202892524,1.7408,2659.3,2659.0,1.792]
[1739202893621,4.9486,2659.3,2659.0,1.792]
[1739202894020,4.9486,2659.3,2658.5,1.792]
[1739202895626,7.8626,2659.3,2658.5,1.792]
[1739202896821,4.20716682,2659.2,2658.5,1.792]
[1739202897822,3.2078,2659.0,2658.5,1.792]
[1739202898224,4.23019723,2658.9,2658.5,1.792]
[1739202898421,4.98221723,2658.9,2658.2,0.00564568]
[1739202898622,0.6082,2658.8,2658.2,0.00564568]
[1739202898818,1.1837,2658.7,2658.2,0.00564568]
[1739202900428,3.2078,2659.3,2658.4,5.20209359]
[1739202900627,0.609,2659.2,2658.7,1.99429359]
[1739202900820,0.609,2659.2,2658.8,0.5906]
[1739202901026,0.609,2659.2,2658.9,40.8]
[1739202901525,3.2078,2659.6,2658.8,0.5906]
[1739202901733,0.6112558,2659.5,2659.0,1.99429359]
[1739202902030,0.6112558,2659.5,2659.1,40.8]
[1739202903629,0.6112558,2659.5,2659.1,41.4049]
[1739202906028,0.6112558,2659.5,2658.8,0.5906]
[1739202906228,0.6112558,2659.5,2658.9,1.791]
[1739202907334,0.6112558,2659.5,2659.0,1.99429359]
[1739202908033,0.6112558,2659.5,2659.1,0.5801]
[1739202911139,0.0022558,2659.5,2659.3,1.99429359]
[1739202911440,0.0022558,2659.5,2659.4,0.5933]
[1739202914326,1.11707,2660.2,2659.4,1.34516]
[1739202914528,0.54237,2660.2,2660.0,1.99429359]
[1739202914729,0.54237,2660.2,2660.1,43.1913]
[1739202915039,0.54237,2660.2,2660.1,43.781]
[1739202916832,0.12827282,2660.2,2660.1,49.781]
[1739202917037,17.03595541,2660.7,2660.2,0.75162]
[1739202917239,17.03595541,2660.7,2660.6,5.20209359]
[1739202917637,0.5917,2661.2,2660.6,5.20209359]
[1739202918541,0.5917,2661.2,2661.1,1.99429359]
[1739202918735,1.114,2661.3,2661.1,1.99429359]
[1739202920034,3.2078,2661.2,2660.6,3.2078]
[1739202920235,1.114,2661.3,2660.6,1.789]
[1739202921539,1.114,2661.3,2660.8,1.99429359]
[1739202921940,1.114,2661.3,2661.1,1.99429359]
[1739202923737,1.114,2661.3,2660.8,5.80089359]
[1739202923943,1.114,2661.3,2660.7,1.789]
[1739202924848,1.114,2661.3,2660.8,1.99429359]
[1739202925152,1.114,2661.3,2660.8,5.20209359]
[1739202925344,1.114,2661.3,2661.1,1.99429359]
[1739202926247,1.114,2661.3,2660.8,5.20209359]
[1739202927246,1.114,2661.3,2661.1,5.20209359]
[1739202928151,0.5547,2661.3,2661.1,5.20209359]
[1739202928449,0.5935,2661.5,2661.1,5.20209359]
[1739202930648,1.1311,2661.7,2661.4,1.99429359]
[1739202930856,17.03595541,2662.3,2661.4,6.99009359]
[1739202931055,17.03595541,2662.3,2661.8,1.99429359]
[1739202931561,17.03595541,2662.3,2662.1,1.99429359]
[1739202931750,17.03595541,2662.3,2662.2,1.788]
[1739202932357,17.03595541,2662.3,2662.2,42.588]
[1739202932553,20.24375541,2662.3,2662.2,1.788]
[1739202932958,17.03595541,2662.3,2662.2,1.788]
[1739202934554,3.2078,2662.6,2662.2,1.788]
[1739202935063,1.7268,2662.7,2662.2,1.788]
[1739202935064,3.2078,2662.4,2662.2,1.788]
[1739202936457,1.7268,2662.7,2662.2,1.788]
[1739202936458,4.9346,2662.7,2662.2,1.788]
[1739202936764,3.2078,2662.4,2662.2,1.788]
[1739202937359,3.2078,2662.4,2661.5,1.1637]
[1739202937360,6.26990145,2662.3,2661.5,1.99429359]
[1739202937666,3.2078,2661.8,2661.3,0.00564568]
[1739202937864,1.7366,2661.7,2661.3,0.00564568]